fUST/lending_fUST_20250615
["ID","MTS","AMOUNT","RATE_DAILY","PERIOD"]
[365924698,1749988245112,-151.0,0.00023688,7]
[365924699,1749988245122,-151.0,0.00023688,7]
[365924700,1749988245133,-964.0,0.00023688,2]
[365924701,1749988245143,-2160.0,0.00023688,2]
[365924702,1749988245152,-653.0,0.00023688,2]
[365924703,1749988245162,-587.0,0.00023696,2]
[365924704,1749988245171,-151.0,0.000237,8]
[365924705,1749988245180,-587.0,0.00023702,2]
[365924706,1749988245189,-151.0,0.00023721,7]
[365924707,1749988245199,-202.585169,0.00023721,7]
[365924708,1749988245209,-674.0,0.00023734,2]
[365924709,1749988245218,-525.02,0.00023734,2]
[365924710,1749988245228,-738.06,0.00023734,2]
[365924711,1749988245237,-611.57,0.00023734,2]
[365924712,1749988245246,-1472.45,0.00023734,2]
[365924713,1749988245255,-151.0,0.00023735,7]
[365924714,1749988245264,-151.0,0.00023735,7]
[365924715,1749988245274,-151.92442,0.00023735,7]
[365924716,1749988245284,-151.0,0.00023735,7]
[365924717,1749988245294,-151.0,0.00023735,7]
[365924718,1749988245303,-500.0,0.00023755,2]
[365924719,1749988245313,-500.0,0.00023773,2]
[365924720,1749988245322,-194.06246095,0.00023783,2]
[365924721,1749988245331,-1417.68272241,0.0002379,2]
[365924722,1749988245341,-800.25589847,0.000238,2]
[365924723,1749988245351,-46268.26335377,0.000238,3]
[365924724,1749988245360,-837.26,0.000238,7]
[365924725,1749988245371,-424.47602138,0.000238,3]
[365924726,1749988245380,-835.55256958,0.000238,3]
[365924727,1749988245389,-12535.62630729,0.000238,3]
[365924728,1749988245398,-160.0,0.000238,3]
[365924729,1749988245407,-229.86375354,0.000238,3]
[365924730,1749988245417,-160.0,0.000238,3]
[365924731,1749988245426,-168.0,0.00023807,2]
[365924732,1749988245435,-460.0,0.00023827,2]
[365924733,1749988245444,-1168.62,0.00023827,2]
[365924734,1749988245455,-1246.41541954,0.00023831,10]
[365924735,1749988245464,-879.17,0.00023835,2]
[365924736,1749988245473,-1330.21,0.00023835,2]
[365924737,1749988245483,-1480.44,0.00023835,2]
[365924738,1749988245492,-460.0,0.00023835,2]
[365924739,1749988245501,-460.0,0.00023835,2]
[365924740,1749988245510,-669.6,0.00023835,2]
[365924741,1749988245521,-646.09,0.00023835,2]
[365924742,1749988245530,-776.95,0.00023835,2]
[365924743,1749988245539,-636.14,0.00023835,2]
[365924744,1749988245550,-500.0,0.00023847,2]
[365924745,1749988245559,-201.84007092,0.00023873,2]
[365924746,1749988245568,-500.0,0.00023873,2]
[365924747,1749988245578,-506.0622837,0.00023873,2]
[365924748,1749988245587,-500.0,0.00023873,2]
[365924749,1749988245596,-125333.1087021,0.0002389,2]
[365924750,1749988245606,-151.0,0.0002389,7]
[365924751,1749988245616,-153.214995,0.0002389,7]
[365924752,1749988245625,-151.0,0.0002389,7]
[365924753,1749988245634,-151.0,0.0002389,7]
[365924754,1749988245643,-151.0,0.0002389,7]
[365924755,1749988245654,-151.0,0.0002389,7]
[365924756,1749988245663,-202.084827,0.0002389,7]
[365924757,1749988245674,-202.084827,0.0002389,7]
[365924758,1749988245683,-151.0,0.0002389,7]
[365924759,1749988245693,-151.0,0.0002389,7]
[365924760,1749988245704,-151.0,0.0002389,7]
[365924761,1749988245713,-151.0,0.0002389,7]
[365924762,1749988245723,-151.0,0.0002389,7]
[365924763,1749988245732,-151.0,0.0002389,7]
[365924764,1749988245742,-151.0,0.0002389,7]
[365924765,1749988245752,-202.585169,0.0002389,7]
[365924766,1749988245761,-151.0,0.0002389,7]
[365924767,1749988245770,-151.0,0.0002389,7]
[365924768,1749988245780,-151.0,0.0002389,7]
[365924769,1749988245789,-151.0,0.0002389,7]
[365924770,1749988245798,-151.0,0.0002389,7]
[365924771,1749988245809,-151.0,0.0002389,7]
[365924772,1749988245818,-151.0,0.0002389,7]
[365924773,1749988245827,-151.0,0.0002389,7]
[365924774,1749988245836,-570.35654,0.0002389,2]
[365924775,1749988245846,-570.35654,0.0002389,2]
[365924776,1749988245855,-151.0,0.0002389,7]
[365924777,1749988245864,-151.0,0.0002389,7]
[365924778,1749988245874,-502.11613,0.0002389,7]
[365924779,1749988245883,-502.11613,0.0002389,7]
[365924780,1749988245892,-151.0,0.0002389,7]
[365924781,1749988245902,-151.0,0.0002389,7]
[365924782,1749988245912,-151.0,0.0002389,7]
[365924783,1749988245921,-151.0,0.0002389,7]
[365924784,1749988245930,-151.0,0.0002389,7]
[365924785,1749988245941,-498.135262,0.0002389,7]
[365924786,1749988245951,-498.135262,0.0002389,7]
[365924787,1749988245960,-500.0,0.00023896,2]
[365924788,1749988245970,-2200.0,0.00023898,2]
[365924789,1749988245979,-34593.685108,0.000239,2]
[365924790,1749988245990,-151.0,0.000239,9]
[365924791,1749988245999,-3459.60757862,0.000239,2]
[365924792,1749988246008,-177.72666715,0.000239,2]
[365924793,1749988246017,-500.0,0.00023945,9]
[365924794,1749988246026,-500.0,0.00023956,9]
[365924795,1749988246036,-500.0,0.00023957,2]
[365924796,1749988246045,-150.0,0.00023973,2]
[365924797,1749988246057,-756.01695299,0.00023973,2]
[365924798,1749988246067,-500.0,0.00023978,2]
[365924799,1749988246076,-2000.0,0.00023987,2]
[365924800,1749988246085,-2000.0,0.00023987,2]
[365924801,1749988246095,-2400.0,0.00023987,2]
[365924802,1749988246104,-31916.87328604,0.00024,30]
[365924803,1749988246115,-2000.0,0.00024,2]
[365924804,1749988246124,-151.62781011,0.00024,2]
[365924805,1749988246135,-5147.28904669,0.00024,30]
[365924806,1749988246418,460.0,0.00019178,2]
[365924807,1749988246463,460.0,0.00019452,2]
[365924808,1749988246496,-151.0,0.00023,7]
[365924809,1749988246505,-151.0,0.000235,7]
[365924810,1749988246514,-405.0,0.00023688,2]
[365924811,1749988246523,-6.24139183,0.0002389,7]
[365924812,1749988246539,-459.99499075,0.00019726,2]
[365924817,1749988247239,460.0,0.00019178,2]
[365924818,1749988247357,-460.0,0.00019717,2]
[365924819,1749988247366,-0.00500925,0.00019726,2]
[365924820,1749988247376,-460.0,0.00019991,2]
[365924821,1749988247386,-460.0,0.0002,2]
[365924822,1749988247395,-244.18695119,0.00020265,2]
[365924823,1749988247406,-215.81304881,0.00020265,2]
[365924824,1749988247415,-460.0,0.00020273,2]
[365924825,1749988247425,-460.0,0.00020539,2]
[365924826,1749988247435,-514.68,0.00020547,2]
[365924827,1749988247444,-460.0,0.00020813,2]
[365924828,1749988247453,-219.43,0.00021087,2]
[365924829,1749988247464,-406.0,0.00023688,2]
[365924830,1749988247473,-144.75860817,0.0002389,7]
[365924831,1749988247483,-5064.47702955,0.00024,30]
[365924832,1749988247493,-202.37335614,0.00024,2]
[365924833,1749988247502,-93590.20424619,0.00024,30]
[365924834,1749988248120,500.0,0.00019069,2]
[365924835,1749988248164,537.75684601,0.00019069,2]
[365924836,1749988248192,276.96398771,0.00019069,2]
[365924837,1749988248224,500.0,0.00019069,2]
[365924838,1749988248251,460.5397134,0.00019069,2]
[365924839,1749988248285,500.0,0.00019069,2]
[365924840,1749988248321,500.0,0.00019069,2]
[365924841,1749988248351,500.0,0.00019069,2]
[365924842,1749988248383,500.0,0.00019069,2]
[365924843,1749988248512,460.0,0.00019178,2]
[365924844,1749988250268,460.0,0.00019178,2]
[365924845,1749988250513,460.0,0.00019452,2]
[365924846,1749988250538,467.0893363,0.0001952,2]
[365924847,1749988252410,460.0,0.00019178,2]
[365924848,1749988252641,460.0,0.00019452,2]
[365924849,1749988265225,460.0,0.00019178,2]
[365924850,1749988265497,460.0,0.00019452,2]
[365924851,1749988265812,549.46,0.00019178,2]
[365924852,1749988266052,549.46,0.00019452,2]
[365924853,1749988292454,430.0,0.00019178,2]
[365924854,1749988293438,460.0,0.00019178,2]
[365924855,1749988293694,460.0,0.00019452,2]
[365924856,1749988310806,460.0,0.00019178,2]
[365924857,1749988314949,199.14533658,0.00019178,2]
[365924858,1749988318953,440.0,0.00019178,2]
[365924859,1749988374456,-460.0,0.00019178,2]
[365924860,1749988374478,-460.0,0.00019178,2]
[365924861,1749988374500,-460.0,0.00019178,2]
[365924862,1749988374522,-460.0,0.00019178,2]
[365924863,1749988374544,-274.02,0.00019178,2]
[365924864,1749988374565,-460.0,0.00019452,2]
[365924865,1749988374586,-460.0,0.00019452,2]
[365924866,1749988374611,-460.0,0.00019452,2]
[365924867,1749988374632,-1399.98,0.0001952,2]
[365924868,1749988442731,-3766.0,0.00018743,2]
[365924870,1749988465245,287.0,0.00025052,60]
[365924871,1749988511095,-456.0,0.00018743,2]
[365924872,1749988542686,-153.17744513,0.0001816,2]
[365924873,1749988564689,-185.55306134,0.00018055,2]
[365924874,1749988575804,-9682.0,0.00018055,2]
[365924875,1749988584394,-132.44693866,0.00018055,2]
[365924876,1749988584417,-60.93377797,0.0001806,2]
[365924877,1749988626671,5000.0,0.00018,2]
[365924878,1749988627242,-69.08045907,0.0001816,2]
[365924880,1749988638070,471.592146,0.00013699,2]
[365924881,1749988643475,-500.0,0.00018179,2]
[365924882,1749988643671,-3792.0,0.00018179,2]
[365924884,1749988710255,-300.0,0.00018179,2]
[365924885,1749988721172,206.5611858,0.00017905,2]
[365924888,1749988776916,-365.0,0.00018179,2]
[365924889,1749988799380,1382.230764,0.00017889,2]
[365924890,1749988801735,-150.0,0.00018,2]
[365924891,1749988810674,-195.7999762,0.00018079,2]
[365924892,1749988810698,-154.2000238,0.00018178,2]
[365924894,1749988830403,5000.0,0.00018,2]
[365924895,1749988842235,250.0,0.00017344,2]
[365924896,1749988842846,-150.0,0.00018,2]
[365924897,1749988842867,-158.62430274,0.00018079,2]
[365924898,1749988842888,-1045.7999762,0.00018178,2]
[365924899,1749988842908,-500.0,0.00018179,2]
[365924900,1749988842929,-500.0,0.00018179,2]
[365924901,1749988842949,-500.0,0.00018179,2]
[365924902,1749988842969,-500.0,0.00018179,2]
[365924903,1749988842989,-500.0,0.00018179,2]
[365924904,1749988843009,-500.0,0.00018179,2]
[365924905,1749988843030,-500.0,0.00018179,2]
[365924906,1749988843050,-164.849944,0.00018363,2]
[365924907,1749988845603,5000.0,0.00018,2]
[365924909,1749988853176,300.0,0.00018364,2]
[365924910,1749988861898,5000.0,0.00018365,2]
[365924911,1749988862333,300.0,0.00018364,2]
[365924912,1749988878520,5000.0,0.00018365,2]
[365924913,1749988893792,4129.72577706,0.00018365,2]
[365924914,1749988898123,-258.57985183,0.00018048,2]
[365924915,1749988911212,-219.67049217,0.00018048,2]
[365924916,1749988911232,-169.65996769,0.00018265,2]
[365924917,1749988911252,-348.77969346,0.00018355,2]
[365924918,1749988911274,-870.27422294,0.00018365,2]
[365924919,1749988911293,-7904.61562374,0.00018365,2]
[365924920,1749988924705,-1279.22,0.00018181,2]
[365924921,1749988931570,-2339.68469791,0.00018004,2]
[365924922,1749988942316,165.17460879,0.00017464,2]
[365924923,1749988954393,-282.2729348,0.00018003,2]
[365924924,1749988962697,359.4703468,0.00017591,2]
[365924925,1749988983535,-158.96908279,0.00018002,2]
[365924926,1749988983764,-141.03091721,0.00018002,2]
[365924927,1749988983786,-200.96908279,0.00018003,2]
[365924928,1749989012711,3792.1462301,0.00017591,2]
[365924929,1749989013190,-16.75798241,0.00018003,2]
[365924930,1749989013212,-500.0,0.00018003,2]
[365924931,1749989013237,-500.0,0.00018003,2]
[365924932,1749989013260,-246.18201759,0.00018003,2]
[365924933,1749989029443,-108.96148246,0.00018003,2]
[365924934,1749989029469,-467.78321545,0.00018003,2]
[365924935,1749989047524,-32.21678455,0.00018003,2]
[365924936,1749989047548,-500.0,0.00018003,2]
[365924937,1749989047570,-500.0,0.00018003,2]
[365924938,1749989047592,-649.70442443,0.00018003,2]
[365924939,1749989047614,-500.0,0.00018003,2]
[365924940,1749989047637,-196.59041465,0.00018003,2]
[365924941,1749989047659,-325.23482509,0.00018003,2]
[365924942,1749989047681,-500.0,0.00018003,2]
[365924943,1749989047705,-500.0,0.00018003,2]
[365924944,1749989047726,-435.90972739,0.00018003,2]
[365924945,1749989047748,-500.0,0.00018003,2]
[365924946,1749989047771,-500.0,0.00018003,2]
[365924947,1749989047794,-500.0,0.00018003,2]
[365924948,1749989047816,-500.0,0.00018003,2]
[365924949,1749989047840,-499.07665728,0.00018003,2]
[365924950,1749989047863,-190.10273409,0.00018003,2]
[365924951,1749989047886,-300.0,0.00018003,2]
[365924952,1749989047908,-500.0,0.00018003,2]
[365924953,1749989047930,-12179.03195974,0.00018003,2]
[365924954,1749989047952,-1858.13247278,0.00018004,2]
[365924955,1749989048647,-279.07771885,0.00018004,2]
[365924956,1749989103267,-200.09419382,0.00018,2]
[365924957,1749989109518,-241.14782377,0.00018,2]
[365924958,1749989109544,-223.80902898,0.00018003,2]
[365924959,1749989109568,-35.04314725,0.00018003,2]
[365924960,1749989111769,5000.0,0.00018,2]
[365924961,1749989118954,-464.95685275,0.00018003,2]
[365924962,1749989118978,-35.04314725,0.00018003,2]
[365924963,1749989128243,5000.0,0.00018,2]
[365924964,1749989132335,-160.0,0.00018003,2]
[365924965,1749989144778,5000.0,0.00018,2]
[365924966,1749989160975,5000.0,0.00018,2]
[365924967,1749989177453,5000.0,0.00018,2]
[365924968,1749989193450,5000.0,0.00018,2]
[365924969,1749989194874,-160.0,0.00018002,2]
[365924970,1749989208793,5000.0,0.00018,2]
[365924971,1749989223608,-140.0,0.00018002,2]
[365924972,1749989223634,-40.0,0.00018003,2]
[365924973,1749989227121,-232.24458197,0.00018003,2]
[365924974,1749989227143,-300.0,0.00018003,2]
[365924975,1749989227166,-300.0,0.00018003,2]
[365924976,1749989227187,-300.0,0.00018003,2]
[365924977,1749989227210,-1200.0,0.00018003,2]
[365924978,1749989227233,-300.0,0.00018003,2]
[365924979,1749989227255,-160.0,0.00018004,2]
[365924980,1749989227279,-176.91440824,0.00018004,2]
[365924981,1749989228121,-1258.97,0.00018004,2]
[365924982,1749989230131,-480.28996697,0.00018004,2]
[365924983,1749989231934,5000.0,0.00018,2]
[365924984,1749989247071,-542.45219708,0.00018004,2]
[365924985,1749989247965,5000.0,0.00018,2]
[365924986,1749989249450,-205.53915405,0.00018004,2]
[365924987,1749989251077,-5310.46755272,0.00018004,2]
[365924988,1749989254122,-222.84918179,0.00018004,2]
[365924989,1749989264973,5000.0,0.00018,2]
[365924990,1749989281465,5000.0,0.00018,2]
[365924991,1749989282248,-154.00870972,0.00018004,2]
[365924992,1749989297231,5000.0,0.00018,2]
[365924998,1749989313692,5000.0,0.00018,2]
[365924999,1749989330776,5000.0,0.00018,2]
[365925001,1749989346205,5000.0,0.00018,2]
[365925002,1749989352165,-300.0,0.00018003,2]
[365925003,1749989352190,-12071.61393989,0.00018004,2]
[365925004,1749989352213,-188.00938,0.00018365,2]
[365925005,1749989352236,-352.67231766,0.00018365,2]
[365925006,1749989352257,-2710.54654998,0.000189,2]
[365925007,1749989352280,-500.0,0.00018932,2]
[365925008,1749989352302,-500.0,0.00018932,2]
[365925009,1749989352326,-500.0,0.00018932,2]
[365925010,1749989352348,-500.0,0.00018932,2]
[365925011,1749989352372,-359.53196526,0.00018932,2]
[365925012,1749989352394,-500.0,0.00018932,2]
[365925013,1749989352417,-500.0,0.00018932,2]
[365925014,1749989352440,-500.0,0.00018932,2]
[365925015,1749989352461,-500.0,0.00018932,2]
[365925016,1749989352483,-500.0,0.00018932,2]
[365925017,1749989352506,-500.0,0.00018932,2]
[365925018,1749989352528,-500.0,0.00018932,2]
[365925019,1749989352552,-500.0,0.00018932,2]
[365925020,1749989352574,-500.0,0.00018932,2]
[365925021,1749989352596,-500.0,0.00018932,2]
[365925022,1749989352622,-500.0,0.00018932,2]
[365925023,1749989352643,-500.0,0.00018932,2]
[365925024,1749989352667,-500.0,0.00018932,2]
[365925025,1749989352689,-350.0,0.00018932,2]
[365925026,1749989352711,-500.0,0.00018932,2]
[365925027,1749989352734,-500.0,0.00018932,2]
[365925028,1749989352757,-500.0,0.00018932,2]
[365925029,1749989352781,-500.0,0.00018932,2]
[365925030,1749989352805,-500.0,0.00018932,2]
[365925031,1749989352828,-500.0,0.00018932,2]
[365925032,1749989352849,-11349.8653316,0.00018933,2]
[365925033,1749989353466,235.11487844,0.00018933,2]
[365925034,1749989353661,235.11487844,0.00018933,2]
[365925035,1749989355083,-800.0,0.00019068,2]
[365925036,1749989355105,-15782.78384,0.00019166,2]
[365925037,1749989360069,-235.11487845,0.00019068,2]
[365925038,1749989360090,-217.21616,0.00019166,2]
[365925039,1749989360110,-355.81936138,0.00019178,2]
[365925040,1749989360130,-164.58382058,0.00019178,2]
[365925041,1749989360149,-460.0,0.00019178,2]
[365925042,1749989360169,-400.0,0.00019178,2]
[365925043,1749989360189,-370.0,0.00019178,2]
[365925044,1749989360208,-460.0,0.00019178,2]
[365925045,1749989360228,-206.50460099,0.00019178,2]
[365925046,1749989360247,-198.63848055,0.00019178,2]
[365925047,1749989360266,-460.0,0.00019178,2]
[365925048,1749989360285,-460.0,0.00019178,2]
[365925049,1749989360305,-460.30292186,0.00019178,2]
[365925050,1749989360325,-440.0,0.00019178,2]
[365925051,1749989360346,-460.0,0.00019178,2]
[365925052,1749989360365,-153.52,0.00019178,2]
[365925053,1749989360385,-460.0,0.00019178,2]
[365925054,1749989360405,-226.20254385,0.00019178,2]
[365925055,1749989360424,-310.0,0.00019178,2]
[365925056,1749989360444,-460.0,0.00019178,2]
[365925057,1749989360463,-586.434,0.00019178,2]
[365925058,1749989360483,-500.0,0.00019178,2]
[365925059,1749989360503,-276.34501886,0.00019178,2]
[365925060,1749989360523,-460.0,0.00019178,2]
[365925061,1749989360546,-460.0,0.00019178,2]
[365925062,1749989360566,-410.0,0.00019178,2]
[365925063,1749989360587,-428.09233646,0.00019178,2]
[365925064,1749989360606,-303.60493372,0.00019178,2]
[365925065,1749989360628,-293.25044225,0.00019178,2]
[365925066,1749989362149,2215.44320724,0.00018986,2]
[365925067,1749989365136,-2784.55679276,0.00018986,2]
[365925068,1749989365158,-106.20908999,0.00019178,2]
[365925069,1749989365178,-460.0,0.00019178,2]
[365925070,1749989365198,-460.0,0.00019178,2]
[365925071,1749989365218,-460.0,0.00019178,2]
[365925072,1749989365238,-460.0,0.00019178,2]
[365925073,1749989365258,-460.0,0.00019178,2]
[365925074,1749989365279,-500.0,0.00019178,2]
[365925075,1749989365301,-500.0,0.00019178,2]
[365925076,1749989365321,-500.0,0.00019178,2]
[365925077,1749989365342,-500.0,0.00019178,2]
[365925078,1749989365361,-168.75475465,0.00019178,2]
[365925079,1749989365382,-410.0,0.00019178,2]
[365925080,1749989365402,-460.0,0.00019178,2]
[365925081,1749989365422,-460.0,0.00019178,2]
[365925082,1749989365441,-186.11544116,0.00019178,2]
[365925083,1749989365464,-1445.1,0.00019178,2]
[365925084,1749989365484,-460.0,0.00019178,2]
[365925085,1749989365505,-460.0,0.00019178,2]
[365925086,1749989365527,-1104.05,0.00019178,2]
[365925087,1749989365552,-1089.09,0.00019178,2]
[365925088,1749989365574,-460.0,0.00019178,2]
[365925089,1749989365594,-440.0,0.00019178,2]
[365925090,1749989365615,-431.12056351,0.00019178,2]
[365925091,1749989365640,-440.0,0.00019178,2]
[365925092,1749989365812,-410.0,0.00019178,2]
[365925093,1749989365833,-420.0,0.00019178,2]
[365925094,1749989365854,-460.0,0.00019178,2]
[365925095,1749989365877,-460.0,0.00019178,2]
[365925096,1749989365898,-460.0,0.00019178,2]
[365925097,1749989365919,-420.0,0.00019178,2]
[365925098,1749989365940,-460.0,0.00019178,2]
[365925099,1749989365960,-460.0,0.00019178,2]
[365925100,1749989365982,-460.0,0.00019178,2]
[365925101,1749989366003,-460.0,0.00019178,2]
[365925102,1749989366023,-460.0,0.00019178,2]
[365925103,1749989366044,-460.0,0.00019178,2]
[365925104,1749989366067,-1235.9,0.00019178,2]
[365925105,1749989366089,-500.0,0.00019178,2]
[365925106,1749989366109,-500.0,0.00019178,2]
[365925107,1749989366130,-460.0,0.00019178,2]
[365925108,1749989366152,-1834.17,0.00019178,2]
[365925109,1749989366173,-1575.47,0.00019178,2]
[365925110,1749989366193,-400.74454511,0.00019178,2]
[365925111,1749989366214,-460.0,0.00019178,2]
[365925112,1749989366234,-460.0,0.00019178,2]
[365925113,1749989366254,-460.0,0.00019178,2]
[365925114,1749989366275,-460.0,0.00019178,2]
[365925115,1749989366295,-460.0,0.00019178,2]
[365925116,1749989366315,-460.0,0.00019178,2]
[365925117,1749989366337,-460.0,0.00019178,2]
[365925118,1749989366359,-347.64132327,0.00019178,2]
[365925119,1749989366383,-600.1,0.00019178,2]
[365925120,1749989366403,-460.0,0.00019178,2]
[365925121,1749989366426,-460.0,0.00019178,2]
[365925122,1749989366446,-460.0,0.00019178,2]
[365925123,1749989366467,-400.0,0.00019178,2]
[365925124,1749989366489,-650.15,0.00019178,2]
[365925125,1749989366510,-400.0,0.00019178,2]
[365925126,1749989366531,-460.0,0.00019178,2]
[365925127,1749989366556,-460.0,0.00019178,2]
[365925128,1749989366581,-460.0,0.00019178,2]
[365925129,1749989366604,-460.0,0.00019178,2]
[365925130,1749989366627,-460.0,0.00019178,2]
[365925131,1749989366647,-460.0,0.00019178,2]
[365925132,1749989366668,-460.0,0.00019178,2]
[365925133,1749989366689,-460.0,0.00019178,2]
[365925134,1749989366711,-460.0,0.00019178,2]
[365925135,1749989366732,-460.0,0.00019178,2]
[365925136,1749989366752,-460.0,0.00019178,2]
[365925137,1749989366772,-460.0,0.00019178,2]
[365925138,1749989366793,-460.0,0.00019178,2]
[365925139,1749989366813,-363.56197532,0.00019178,2]
[365925140,1749989366833,-460.0,0.00019178,2]
[365925141,1749989366853,-460.0,0.00019178,2]
[365925142,1749989366872,-440.0,0.00019178,2]
[365925143,1749989366891,-460.0,0.00019178,2]
[365925144,1749989366912,-460.0,0.00019178,2]
[365925145,1749989366933,-460.0,0.00019178,2]
[365925146,1749989366955,-460.0,0.00019178,2]
[365925147,1749989366976,-1046.0,0.00019178,2]
[365925148,1749989366996,-460.0,0.00019178,2]
[365925149,1749989367019,-460.0,0.00019178,2]
[365925150,1749989367039,-420.0,0.00019178,2]
[365925151,1749989367059,-460.0,0.00019178,2]
[365925152,1749989367079,-350.0,0.00019178,2]
[365925153,1749989367099,-460.0,0.00019178,2]
[365925154,1749989367119,-460.0,0.00019178,2]
[365925155,1749989367140,-460.0,0.00019178,2]
[365925156,1749989367166,-460.0,0.00019178,2]
[365925157,1749989367188,-338.38865541,0.00019178,2]
[365925158,1749989367209,-460.0,0.00019178,2]
[365925159,1749989367230,-460.0,0.00019178,2]
[365925160,1749989367250,-188.988832,0.00019178,2]
[365925161,1749989367271,-460.0,0.00019451,2]
[365925162,1749989367291,-460.0,0.00019451,2]
[365925163,1749989367314,-460.0,0.00019451,2]
[365925164,1749989367336,-460.0,0.00019451,2]
[365925165,1749989367357,-460.0,0.00019451,2]
[365925166,1749989367378,-460.0,0.00019451,2]
[365925167,1749989367398,-460.0,0.00019451,2]
[365925168,1749989367419,-460.0,0.00019451,2]
[365925169,1749989367441,-1731.66,0.00019451,2]
[365925170,1749989367463,-460.0,0.00019451,2]
[365925171,1749989367483,-1169.6,0.00019451,2]
[365925172,1749989367504,-460.0,0.00019451,2]
[365925173,1749989367524,-460.0,0.00019451,2]
[365925174,1749989367548,-460.0,0.00019451,2]
[365925175,1749989367570,-915.1,0.00019451,2]
[365925176,1749989367592,-460.0,0.00019452,2]
[365925177,1749989367617,-460.0,0.00019452,2]
[365925178,1749989367642,-162.48663862,0.00019452,2]
[365925179,1749989367662,-460.0,0.00019452,2]
[365925180,1749989367682,-193.32,0.00019452,2]
[365925181,1749989367702,-460.0,0.00019452,2]
[365925182,1749989367724,-460.0,0.00019452,2]
[365925183,1749989367746,-1445.1,0.00019452,2]
[365925184,1749989367768,-460.0,0.00019452,2]
[365925185,1749989367788,-577.1189379,0.00019452,2]
[365925186,1749989367810,-1104.05,0.00019452,2]
[365925187,1749989367832,-1089.09,0.00019452,2]
[365925188,1749989367853,-460.0,0.00019452,2]
[365925189,1749989367875,-460.0,0.00019452,2]
[365925190,1749989367895,-460.0,0.00019452,2]
[365925191,1749989367917,-460.0,0.00019452,2]
[365925192,1749989367940,-460.0,0.00019452,2]
[365925193,1749989367960,-389.40865632,0.00019452,2]
[365925194,1749989367981,-460.0,0.00019452,2]
[365925195,1749989368004,-460.0,0.00019452,2]
[365925196,1749989368025,-460.0,0.00019452,2]
[365925197,1749989368047,-1235.9,0.00019452,2]
[365925198,1749989368071,-1834.17,0.00019452,2]
[365925199,1749989368093,-1575.47,0.00019452,2]
[365925200,1749989368114,-460.0,0.00019452,2]
[365925201,1749989368135,-184.54495475,0.00019452,2]
[365925202,1749989368157,-600.1,0.00019452,2]
[365925203,1749989368178,-430.0,0.00019452,2]
[365925204,1749989368200,-440.0,0.00019452,2]
[365925205,1749989368223,-650.15,0.00019452,2]
[365925206,1749989368247,-460.0,0.00019452,2]
[365925207,1749989368269,-460.0,0.00019452,2]
[365925208,1749989368290,-460.0,0.00019452,2]
[365925209,1749989368311,-460.0,0.00019452,2]
[365925210,1749989368332,-460.0,0.00019452,2]
[365925211,1749989368352,-460.0,0.00019452,2]
[365925212,1749989368372,-460.0,0.00019452,2]
[365925213,1749989368394,-460.0,0.00019452,2]
[365925214,1749989368415,-460.0,0.00019452,2]